bitfinex/quotes_BTCUSD_20250620
["timestamp","ask_amount","ask_price","bid_price","bid_amount"]
[1750443218675,0.81660797,103250.0,103240.0,0.27749619]
[1750443219588,0.81660797,103250.0,103240.0,0.28718217]
[1750443220081,0.81660797,103250.0,103240.0,0.27749619]
[1750443220344,0.80692312,103250.0,103240.0,0.0644006]
[1750443220788,0.78380735,103250.0,103240.0,0.0644006]
[1750443221671,0.78380735,103250.0,103240.0,0.27749619]
[1750443222839,0.78380735,103250.0,103240.0,0.29686796]
[1750443223061,0.78380735,103250.0,103240.0,0.29586796]
[1750443223274,0.78380735,103250.0,103240.0,0.28618217]
[1750443223489,0.78380735,103250.0,103240.0,0.26781012]
[1750443223705,0.78380735,103250.0,103240.0,0.27081012]
[1750443223932,0.78380735,103250.0,103240.0,0.0674006]
[1750443224614,0.60060735,103250.0,103240.0,0.0674006]
[1750443225352,0.60060735,103250.0,103240.0,0.0664006]
[1750443225595,5.98224313,103250.0,103240.0,0.0055706]
[1750443225812,6.00546081,103250.0,103240.0,0.0055706]
[1750443226514,6.00546081,103250.0,103240.0,0.0035706]
[1750443226951,6.00546081,103250.0,103240.0,0.0045706]
[1750443227202,5.98224313,103250.0,103240.0,0.0045706]
[1750443227397,6.0054614,103250.0,103240.0,0.0045706]
[1750443228138,6.0054614,103250.0,103240.0,0.0015706]
[1750443228348,6.0054614,103250.0,103240.0,0.0027006]
[1750443228551,6.0054614,103250.0,103240.0,0.0037006]
[1750443229173,5.91019155,103250.0,103240.0,0.0037006]
[1750443229449,5.91019155,103250.0,103240.0,0.0025706]
[1750443232723,5.93928855,103250.0,103240.0,0.0025706]
[1750443233357,5.93928855,103250.0,103240.0,0.0037006]
[1750443234642,5.93928855,103250.0,103240.0,0.0363006]
[1750443235278,5.91019155,103250.0,103240.0,0.0351706]
[1750443235548,5.91019155,103250.0,103240.0,0.0693106]
[1750443235767,5.81455262,103250.0,103240.0,0.0693106]
[1750443236401,5.81451262,103250.0,103240.0,0.0693106]
[1750443236832,5.57979262,103250.0,103240.0,0.0693106]
[1750443237042,5.81447262,103250.0,103240.0,0.0693106]
[1750443238789,5.81439262,103250.0,103240.0,0.27272003]
[1750443239004,0.78304735,103250.0,103240.0,0.27272003]
[1750443239431,0.78304735,103250.0,103240.0,0.26303396]
[1750443239858,0.78304735,103250.0,103240.0,0.0693106]
[1750443241529,0.34,103250.0,103240.0,0.27271994]
[1750443241750,0.61491934,103250.0,103240.0,0.29209124]
[1750443241956,0.4212138,103250.0,103240.0,0.29209124]
[1750443242399,0.41152904,103250.0,103240.0,0.29209124]
[1750443242610,0.05216,103250.0,103240.0,0.89886174]
[1750443243043,0.05216,103250.0,103240.0,1.08118174]
[1750443243289,0.05216,103250.0,103240.0,0.56969017]
[1750443243503,0.25200736,103260.0,103250.0,0.28929915]
[1750443243504,0.26169127,103260.0,103250.0,0.28929915]
[1750443243711,0.60169108,103260.0,103250.0,0.28929915]
[1750443243916,0.58232354,103260.0,103250.0,0.28929915]
[1750443244127,0.59200717,103260.0,103250.0,0.28929915]
[1750443244337,0.57264,103260.0,103250.0,0.28929915]
[1750443244586,0.58232344,103260.0,103250.0,0.28929915]
[1750443244778,0.41152548,103270.0,103260.0,0.28687757]
[1750443245015,0.05216,103270.0,103260.0,0.3821565]
[1750443245224,0.28453704,103280.0,103270.0,0.2759335]
[1750443245450,0.27485519,103280.0,103270.0,0.27717359]
[1750443245660,0.56269519,103280.0,103270.0,0.28685666]
[1750443245882,0.61485519,103280.0,103270.0,0.29653963]
[1750443246288,0.64657257,103280.0,103270.0,0.29653963]
[1750443246699,0.64657257,103280.0,103270.0,0.28685666]
[1750443247110,0.64657257,103280.0,103270.0,0.27717369]
[1750443247321,0.64657257,103280.0,103270.0,0.28685685]
[1750443247476,0.63689044,103280.0,103270.0,0.27727369]
[1750443247676,0.63637044,103280.0,103270.0,0.28795676]
[1750443248134,0.60465306,103280.0,103270.0,0.29763964]
[1750443248340,0.60465306,103280.0,103270.0,0.29763973]
[1750443248555,0.60465306,103280.0,103270.0,0.30732261]
[1750443249445,0.39164,103280.0,103270.0,0.30732195]
[1750443249667,0.40132176,103280.0,103270.0,0.30732195]
[1750443249868,0.39164,103280.0,103270.0,0.30732195]
[1750443250080,0.41100342,103280.0,103270.0,0.2782735]
[1750443250279,0.41100342,103280.0,103270.0,0.287956]
[1750443250489,0.40079745,103280.0,103270.0,0.287956]
[1750443251370,0.06132157,103280.0,103270.0,0.287956]
[1750443251581,0.07100333,103280.0,103270.0,0.287956]
[1750443252011,0.08068527,103280.0,103270.0,0.27827331]
[1750443252230,0.08068527,103280.0,103270.0,0.2879561]
[1750443252436,0.08068527,103280.0,103270.0,0.29763879]
[1750443252997,0.07100333,103280.0,103270.0,0.29763879]
[1750443253424,0.07100333,103280.0,103270.0,0.29863879]
[1750443253908,0.07100333,103280.0,103270.0,0.30063879]
[1750443254082,0.08068527,103280.0,103270.0,0.30063879]
[1750443254289,0.07100333,103280.0,103270.0,0.30063879]
[1750443254631,0.07100333,103280.0,103270.0,0.29095619]
[1750443254632,0.08068527,103280.0,103270.0,0.29095619]
[1750443255081,0.08068527,103280.0,103270.0,0.30063898]
[1750443255734,0.08068527,103280.0,103270.0,0.31032167]
[1750443255948,0.08068537,103280.0,103270.0,0.29095619]
[1750443256156,0.08068527,103280.0,103270.0,0.30063898]
[1750443256592,0.08068527,103280.0,103270.0,0.31032167]
[1750443256804,0.08068518,103280.0,103270.0,0.31032167]
[1750443257423,0.06132157,103280.0,103270.0,0.31032167]
[1750443257628,0.08068508,103280.0,103270.0,0.31032167]
[1750443257837,0.08068517,103280.0,103270.0,0.31032167]
[1750443258243,0.08068517,103280.0,103270.0,0.30063898]
[1750443258455,0.08068517,103280.0,103270.0,0.49208167]
[1750443258876,0.08068517,103280.0,103270.0,0.48239898]
[1750443259067,0.0903673,103280.0,103270.0,0.47271619]
[1750443259530,0.0903673,103280.0,103270.0,0.46303331]
[1750443259738,0.0903673,103280.0,103270.0,0.45335034]
[1750443259934,0.0903673,103280.0,103270.0,0.47271619]
[1750443261275,0.68622064,103280.0,103270.0,0.0041]
[1750443261495,5.9288559,103280.0,103270.0,0.0041]
[1750443261732,6.00151159,103280.0,103270.0,0.0041]
[1750443261948,6.01958113,103280.0,103270.0,0.0041]
[1750443262171,5.88533074,103280.0,103270.0,0.0041]
[1750443262390,6.0890679,103280.0,103270.0,0.0041]
[1750443262598,5.8559079,103280.0,103270.0,0.0021]
[1750443262809,6.0890279,103280.0,103270.0,0.0021]
[1750443263026,5.83477857,103280.0,103270.0,0.0021]
[1750443263234,5.92063061,103280.0,103270.0,0.0021]
[1750443263453,5.68551061,103280.0,103270.0,0.0001]
[1750443263700,5.91963061,103280.0,103270.0,0.0001]
[1750443263913,5.92563061,103280.0,103270.0,0.0001]
[1750443264121,5.91963061,103280.0,103270.0,0.0001]
[1750443264330,6.01690046,103280.0,103270.0,0.0001]
[1750443264993,0.24510468,103280.0,103270.0,0.00128]
[1750443265208,0.78905268,103280.0,103270.0,0.20463034]
[1750443265421,0.78905268,103280.0,103270.0,0.23733034]
[1750443265844,0.78805268,103280.0,103270.0,0.23733034]
[1750443266064,0.78805268,103280.0,103270.0,0.23733043]
[1750443266327,0.60461287,103280.0,103270.0,0.28959638]
[1750443266537,0.60461287,103280.0,103270.0,0.2799135]
[1750443266744,0.60461287,103280.0,103270.0,0.28959647]
[1750443266966,0.0806463,103280.0,103270.0,0.30896214]
[1750443267179,0.23235454,103290.0,103280.0,0.20449912]
[1750443267398,0.27427353,103290.0,103280.0,0.24738143]
[1750443267626,0.27427353,103290.0,103280.0,0.28736356]
[1750443267838,0.61427353,103290.0,103280.0,0.2583168]
[1750443268025,0.60459243,103290.0,103280.0,0.2583168]
[1750443268498,0.60459243,103290.0,103280.0,0.26799921]
[1750443268706,0.60450403,103290.0,103280.0,0.27768153]
[1750443269329,0.60450403,103290.0,103280.0,0.26799921]
[1750443269537,0.60450403,103290.0,103280.0,0.27768153]
[1750443269749,0.60450403,103290.0,103280.0,0.2583168]
[1750443270171,0.59482265,103290.0,103280.0,0.26799921]
[1750443270378,0.59482265,103290.0,103280.0,0.2583168]
[1750443270816,0.59482265,103290.0,103280.0,0.2280168]
[1750443271020,0.59482265,103290.0,103280.0,0.23769921]
[1750443271229,0.59482265,103290.0,103280.0,0.2280168]
[1750443271441,0.59482265,103290.0,103280.0,0.23769921]
[1750443271656,0.59482265,103290.0,103280.0,0.24738153]
[1750443272099,0.59482265,103290.0,103280.0,0.25706375]
[1750443272573,0.59482265,103290.0,103280.0,0.29894588]
[1750443273010,0.59482265,103290.0,103280.0,0.28926375]
[1750443275002,0.59482265,103290.0,103280.0,0.27958153]
[1750443275313,0.59482265,103290.0,103280.0,0.28926375]
[1750443275833,0.59482265,103290.0,103280.0,0.2602168]
[1750443276253,0.59482265,103290.0,103280.0,0.2280168]
[1750443277385,0.59482265,103290.0,103280.0,0.03438]
[1750443277991,0.59482265,103290.0,103270.0,0.44065979]
[1750443277992,0.54333074,103280.0,103270.0,0.44065979]
[1750443278199,0.55301287,103280.0,103270.0,0.27910621]
[1750443278417,0.55301287,103280.0,103270.0,0.28878928]
[1750443278621,0.3690463,103280.0,103270.0,0.29847207]
[1750443278824,0.35936342,103280.0,103270.0,0.30815476]
[1750443279268,0.01936342,103280.0,103270.0,0.31015476]
[1750443279481,0.02904546,103280.0,103270.0,0.31215476]
[1750443279711,0.03872778,103280.0,103270.0,0.30247207]
[1750443279915,0.23237695,103280.0,103270.0,0.28310621]
[1750443280122,0.23237695,103280.0,103270.0,0.29278928]
[1750443280534,0.02904621,103280.0,103270.0,0.31215495]
[1750443281154,0.02904602,103280.0,103270.0,0.31215438]
[1750443281350,0.03872834,103280.0,103270.0,0.30247169]
[1750443281597,0.03872824,103280.0,103270.0,0.31215438]
[1750443281804,0.00968157,103280.0,103270.0,0.31215438]
[1750443282017,0.01936342,103280.0,103270.0,0.31215438]
[1750443282219,0.01936323,103280.0,103270.0,0.31215438]
[1750443282440,0.00968157,103280.0,103270.0,0.25990787]
[1750443282701,0.00968157,103280.0,103270.0,0.26108787]
[1750443282914,0.42012264,103290.0,103280.0,0.28887445]
[1750443283123,0.42980393,103290.0,103280.0,0.28887445]
[1750443283331,0.61375334,103290.0,103280.0,0.25982833]
[1750443283556,0.61375334,103290.0,103280.0,0.26951065]
[1750443283774,0.61375334,103290.0,103280.0,0.27919306]
[1750443283981,0.61375334,103290.0,103280.0,0.24589306]
[1750443284194,0.61375334,103290.0,103280.0,0.23621074]
[1750443284406,0.21301287,103280.0,103270.0,0.28030602]
[1750443284614,0.01936398,103280.0,103270.0,0.28030602]
[1750443284823,0.22269463,103280.0,103270.0,0.27062305]
[1750443285031,0.22269463,103280.0,103270.0,0.28998909]
[1750443285244,0.23237629,103280.0,103270.0,0.28998909]
[1750443285449,0.23237629,103280.0,103270.0,0.28030612]
[1750443285658,0.23237629,103280.0,103270.0,0.29198909]
[1750443285863,0.03872796,103280.0,103270.0,0.30167197]
[1750443286070,0.03872796,103280.0,103270.0,0.30367197]
[1750443286310,0.01936351,103280.0,103270.0,0.31335466]
[1750443286539,0.55299405,103290.0,103280.0,0.23691074]
[1750443286746,0.78471405,103290.0,103280.0,0.27789287]
[1750443286956,0.41044192,103290.0,103280.0,0.26595694]
[1750443287162,0.42012321,103290.0,103280.0,0.29725694]
[1750443287587,0.23785,103290.0,103280.0,0.29725694]
[1750443287798,0.08012321,103290.0,103280.0,0.3069387]
[1750443288004,0.08012321,103290.0,103280.0,0.29725694]
[1750443288563,0.08012311,103290.0,103280.0,0.3069387]
[1750443288769,0.71800852,103300.0,103290.0,0.24747243]
[1750443288970,0.71800852,103300.0,103290.0,0.27747243]
[1750443289187,0.71800852,103300.0,103290.0,0.28715372]
[1750443289700,1.05800852,103300.0,103290.0,0.28715372]
[1750443289902,1.05900852,103300.0,103290.0,0.28715372]
[1750443290481,1.05900852,103300.0,103290.0,0.27747243]
[1750443290683,1.05900852,103300.0,103290.0,0.28715372]
[1750443290928,0.00105,103300.0,103290.0,0.30651564]
[1750443291072,0.00105,103300.0,103290.0,0.48691564]
[1750443291272,5e-05,103300.0,103290.0,0.48691564]
[1750443292494,5e-05,103300.0,103290.0,0.48791564]
[1750443293287,5e-05,103300.0,103290.0,0.48991564]
[1750443293492,5e-05,103300.0,103290.0,0.58519457]
[1750443296097,5e-05,103300.0,103290.0,0.59519457]
[1750443300476,5e-05,103300.0,103290.0,0.62366261]
[1750443301212,5e-05,103300.0,103290.0,1.13515418]
[1750443301415,5e-05,103300.0,103290.0,1.14969503]
[1750443302044,5e-05,103300.0,103290.0,1.6611866]
[1750443302623,5e-05,103300.0,103290.0,0.63820346]
[1750443302848,5e-05,103300.0,103290.0,1.6611866]
[1750443303500,5e-05,103300.0,103290.0,1.6591866]
[1750443303863,5e-05,103300.0,103290.0,1.6581866]
[1750443304296,5e-05,103300.0,103290.0,1.6591866]
[1750443304455,5e-05,103300.0,103290.0,1.6601866]
[1750443305292,5e-05,103300.0,103290.0,0.63720346]
[1750443305510,5e-05,103300.0,103290.0,1.14837503]
[1750443305880,5e-05,103300.0,103290.0,1.13375418]
[1750443306084,5e-05,103300.0,103290.0,1.14829503]
[1750443306270,5e-05,103300.0,103290.0,1.13375418]
[1750443306721,5e-05,103300.0,103290.0,1.14829503]
[1750443309123,5e-05,103300.0,103290.0,1.6597866]
[1750443310303,5e-05,103300.0,103290.0,1.14829503]
[1750443310508,5e-05,103300.0,103290.0,0.13574697]
[1750443310715,0.42130015,103300.0,103290.0,0.20562958]
[1750443310914,0.42130015,103300.0,103290.0,0.21531096]
[1750443310915,0.421301,103300.0,103290.0,0.21531096]
[1750443311127,0.33390208,103300.0,103290.0,0.21531105]
[1750443311335,0.33390208,103300.0,103290.0,0.22499234]
[1750443311668,0.31454138,103300.0,103290.0,0.21431105]
[1750443311888,0.38297979,103300.0,103290.0,0.011]
[1750443312103,0.38297979,103300.0,103290.0,0.012]
[1750443312104,0.4775449,103300.0,103290.0,0.012]
[1750443312327,0.38297979,103300.0,103290.0,0.012]
[1750443312542,0.65809872,103300.0,103290.0,0.011]
[1750443312745,5.66622572,103300.0,103290.0,0.011]
[1750443312959,5.66622572,103300.0,103290.0,0.013]
[1750443314258,5.66622572,103300.0,103290.0,0.012]
[1750443314414,5.76149557,103300.0,103290.0,0.012]
[1750443314621,5.58850677,103300.0,103290.0,0.012]
[1750443315415,5.92850677,103300.0,103290.0,0.012]
[1750443316049,5.92850677,103300.0,103290.0,0.01]
[1750443316822,5.93150677,103300.0,103290.0,0.01]
[1750443317312,5.93050677,103300.0,103290.0,0.01]
[1750443317677,6.02677662,103300.0,103290.0,0.01]
[1750443319556,6.04131747,103300.0,103290.0,0.01]
[1750443319755,5.62703949,103280.0,103270.0,0.0001]
[1750443319931,0.37873921,103250.0,103240.0,0.21316711]
[1750443320136,0.62304381,103250.0,103240.0,0.21363781]
[1750443320336,0.62304381,103250.0,103240.0,0.22332369]
[1750443320470,0.61335943,103250.0,103240.0,0.21363781]
[1750443320675,0.63276677,103250.0,103240.0,0.19426567]
[1750443320984,0.66406677,103250.0,103240.0,0.20395183]
[1750443321207,0.69169291,103250.0,103240.0,0.20395183]
[1750443321708,0.69169291,103250.0,103240.0,0.2136379]
[1750443321913,0.46668831,103250.0,103240.0,0.23400938]
[1750443322056,0.46668831,103250.0,103240.0,0.24485498]
[1750443322489,0.46668831,103250.0,103240.0,0.24685498]
[1750443322693,0.46668831,103250.0,103240.0,0.23716938]
[1750443322893,0.66039291,103250.0,103240.0,0.22748369]
[1750443323099,0.66039291,103250.0,103240.0,0.22748378]
[1750443323550,0.66039291,103250.0,103240.0,0.23716957]
[1750443324308,0.66039291,103250.0,103240.0,0.2166379]
[1750443324552,0.81017782,103250.0,103240.0,0.19726567]
[1750443324948,0.71490797,103250.0,103240.0,0.19726567]
[1750443325092,0.68380797,103250.0,103240.0,0.20695165]
[1750443325293,0.65070797,103250.0,103240.0,0.20695165]
[1750443325526,0.65070797,103250.0,103240.0,0.20812165]
[1750443325726,0.65070797,103250.0,103240.0,0.20812174]
[1750443326542,0.66039291,103250.0,103240.0,0.22749341]
[1750443326851,0.66039291,103250.0,103240.0,0.22749351]
[1750443326996,0.66039291,103250.0,103240.0,0.2274936]
[1750443327608,0.66039291,103250.0,103240.0,0.23717939]
[1750443327847,0.46668831,103250.0,103240.0,0.23717939]
[1750443328049,0.66039291,103250.0,103240.0,0.23717939]
[1750443328261,0.47637278,103250.0,103240.0,0.23717939]
[1750443328459,0.029092,103250.0,103240.0,0.24686452]
[1750443328728,0.0817,103270.0,103260.0,0.22273776]
[1750443328868,0.079689,103270.0,103260.0,0.23359167]
[1750443329081,0.11340495,103270.0,103260.0,0.23359167]
[1750443329480,0.12308774,103270.0,103260.0,0.23359176]
[1750443329674,0.32555357,103270.0,103260.0,0.23359176]
[1750443329875,0.33623617,103270.0,103260.0,0.23359176]
[1750443330076,0.32655357,103270.0,103260.0,0.24327539]
[1750443330370,0.33523608,103270.0,103260.0,0.27617539]
[1750443330606,0.33523617,103270.0,103260.0,0.27617539]
[1750443331397,0.33523617,103270.0,103260.0,0.22390804]
[1750443331625,0.34491905,103270.0,103260.0,0.22390804]
[1750443331870,0.33523617,103270.0,103260.0,0.23359186]
[1750443332084,0.34491886,103270.0,103260.0,0.22390804]
[1750443332294,0.35460174,103270.0,103260.0,0.22390804]
[1750443332513,0.32555357,103270.0,103260.0,0.22390804]
[1750443332723,0.32555357,103270.0,103260.0,0.23359167]
[1750443333193,0.23248,103280.0,103270.0,0.222716]
[1750443333405,0.63280166,103280.0,103270.0,0.223886]
[1750443333603,0.62312,103280.0,103270.0,0.223886]
[1750443334791,0.63280157,103280.0,103270.0,0.223886]
[1750443335449,0.64248333,103280.0,103270.0,0.223886]
[1750443335673,0.64248333,103280.0,103270.0,0.2268861]
[1750443335920,0.65216527,103280.0,103270.0,0.19783708]
[1750443336145,0.84581481,103280.0,103270.0,0.19666708]
[1750443336365,0.87741481,103280.0,103270.0,0.19666708]
[1750443337509,0.86773287,103280.0,103270.0,0.19666708]
[1750443337733,0.90043287,103280.0,103270.0,0.19666708]
[1750443337949,0.84979287,103280.0,103270.0,0.19666708]
[1750443338125,0.90039287,103280.0,103270.0,0.19666708]
[1750443338545,0.64244342,103280.0,103270.0,0.23656945]
[1750443339508,0.64244342,103280.0,103270.0,0.23656954]
[1750443339777,0.63276176,103280.0,103270.0,0.24625223]
[1750443339989,0.63276176,103280.0,103270.0,0.27835223]
[1750443340205,0.62308,103280.0,103270.0,0.27835223]
[1750443340663,0.63276166,103280.0,103270.0,0.27835223]
[1750443340929,0.62308,103280.0,103270.0,0.27835223]
[1750443341132,0.3906,103280.0,103270.0,0.30855223]
[1750443341755,0.0506,103280.0,103270.0,0.30855223]
[1750443341966,0.0506,103280.0,103270.0,0.42713172]
[1750443343925,0.39996969,103300.0,103290.0,0.22384288]
[1750443344149,0.05029,103300.0,103290.0,0.22384288]
[1750443344401,5e-05,103300.0,103290.0,0.38182181]
[1750443345319,0.00305,103300.0,103290.0,0.38182181]
[1750443345550,0.00105,103300.0,103290.0,0.38182181]
[1750443345776,0.00105,103300.0,103290.0,0.38382181]
[1750443345777,5e-05,103300.0,103290.0,0.38382181]
[1750443346269,5e-05,103300.0,103290.0,0.38482181]
[1750443348966,5e-05,103300.0,103290.0,0.56374181]
[1750443354778,5e-05,103300.0,103290.0,0.50104181]
[1750443355424,5e-05,103300.0,103290.0,0.53334181]
[1750443357757,0.33871653,103310.0,103300.0,0.22265132]
[1750443357965,0.33880743,103310.0,103300.0,0.22387132]
[1750443358165,0.33880743,103310.0,103300.0,0.23355139]
[1750443358577,0.34848694,103310.0,103300.0,0.23355148]
[1750443358817,0.12771927,103310.0,103300.0,0.24323136]
[1750443359453,0.15675704,103310.0,103300.0,0.21419154]
[1750443359678,0.16643617,103310.0,103300.0,0.2238717]
[1750443359886,0.16643552,103310.0,103300.0,0.23355177]
[1750443360101,0.1567562,103310.0,103300.0,0.23355177]
[1750443360316,0.4977562,103310.0,103300.0,0.23355177]
[1750443360520,0.50743552,103310.0,103300.0,0.2227517]
[1750443360725,0.76542827,103310.0,103300.0,0.37223084]
[1750443360930,0.27835083,103310.0,103300.0,0.38191128]
[1750443361345,0.297709,103310.0,103300.0,0.38191128]
[1750443361570,0.28802996,103310.0,103300.0,0.38191128]
[1750443361779,0.09443786,103310.0,103300.0,0.41095186]
[1750443362200,0.09443786,103310.0,103300.0,0.41217186]
[1750443362402,0.06263786,103310.0,103300.0,0.41217186]
[1750443362845,0.01067885,103310.0,103300.0,0.42185174]
[1750443363472,0.37003702,103310.0,103300.0,0.42185174]
[1750443363693,0.36035779,103310.0,103300.0,0.42185174]
[1750443363883,0.37003702,103310.0,103300.0,0.42185174]
[1750443364811,0.37003683,103310.0,103300.0,0.42185174]
[1750443365021,0.37971606,103310.0,103300.0,0.42185174]
[1750443365438,0.38939547,103310.0,103300.0,0.42185183]
[1750443365852,0.37003683,103310.0,103300.0,0.42185183]
[1750443366061,0.37971606,103310.0,103300.0,0.42185127]
[1750443366234,0.37971606,103310.0,103300.0,0.38313119]
[1750443366437,0.63480882,103310.0,103300.0,0.37223084]
[1750443366650,0.63480882,103310.0,103300.0,0.39159154]
[1750443366812,0.43153721,103310.0,103300.0,0.22275161]
[1750443367017,0.39085798,103310.0,103300.0,0.42165146]
[1750443367218,0.35067894,103310.0,103300.0,0.42165146]
[1750443367782,0.36035798,103310.0,103300.0,0.42165146]
[1750443368155,0.341,103310.0,103300.0,0.24333146]
[1750443368358,0.35067885,103310.0,103300.0,0.42165146]
[1750443368538,0.341,103310.0,103300.0,0.42165146]
[1750443368738,0.001,103310.0,103300.0,0.48285146]
[1750443369324,0.001,103310.0,103300.0,1.10331513]
[1750443369740,2.4124,103320.0,103310.0,0.22262978]
[1750443369964,2.4124,103320.0,103310.0,0.28382978]
[1750443370169,2.4124,103320.0,103310.0,0.28504978]
[1750443370595,2.7524,103320.0,103310.0,0.30852968]
[1750443370801,2.7524,103320.0,103310.0,0.28504978]
[1750443371220,2.7524,103320.0,103310.0,0.25434978]
[1750443371427,2.7524,103320.0,103310.0,0.28604978]
[1750443371652,2.7524,103320.0,103310.0,0.28704978]
[1750443373118,2.52494462,103320.0,103310.0,0.28704978]
[1750443374183,2.18494462,103320.0,103310.0,0.38232871]
[1750443375264,2.18494462,103320.0,103310.0,0.90751345]
[1750443375477,2.18494462,103320.0,103310.0,0.38232871]
[1750443379367,2.00151258,103320.0,103310.0,0.38232871]
[1750443380401,1.75613075,103320.0,103310.0,0.38232871]
[1750443381467,1.74863075,103320.0,103310.0,0.38232871]
[1750443386604,1.94220411,103320.0,103310.0,0.1955921]
[1750443386829,1.9271569,103320.0,103310.0,0.40226978]
[1750443387048,1.84156543,103320.0,103310.0,0.21495084]
[1750443387236,1.84156543,103320.0,103310.0,0.40226997]
[1750443387459,2.38481736,103320.0,103310.0,0.002]
[1750443387661,2.54350106,103320.0,103310.0,0.002]
[1750443391068,2.63877999,103320.0,103310.0,0.002]
[1750443391269,7.64690699,103320.0,103310.0,0.002]
[1750443392545,7.64690699,103320.0,103310.0,0.001]
[1750443392693,0.6073717,103310.0,103300.0,0.19371047]
[1750443392932,0.7848517,103310.0,103300.0,0.19371047]
[1750443393145,0.7848517,103310.0,103300.0,0.0001]
[1750443393528,0.7848517,103310.0,103300.0,0.19371084]
[1750443393938,0.7848517,103310.0,103300.0,0.19471084]
[1750443394267,0.7848517,103310.0,103300.0,0.19571084]
[1750443394491,0.7848517,103310.0,103300.0,0.0021]
[1750443394905,0.7848517,103310.0,103300.0,0.19571084]
[1750443395705,0.7848517,103310.0,103300.0,0.0021]
[1750443396151,0.97540048,103310.0,103300.0,0.0021]
[1750443397251,1.00448148,103310.0,103300.0,0.0011]
[1750443398310,6.03577582,103310.0,103300.0,0.0011]
[1750443398521,6.03577582,103310.0,103300.0,0.0001]
[1750443398732,6.03677582,103310.0,103300.0,0.0001]
[1750443399151,6.03577582,103310.0,103300.0,0.0001]
[1750443399362,6.03877582,103310.0,103300.0,0.0001]
[1750443400419,6.01560848,103310.0,103300.0,0.0001]
[1750443403469,6.04179739,103310.0,103300.0,0.0001]
[1750443403719,6.03874064,103310.0,103300.0,0.0001]
[1750443404228,6.05682087,103310.0,103300.0,0.0001]
[1750443404469,5.77527011,103310.0,103300.0,0.0001]
[1750443404691,5.97893795,103310.0,103300.0,0.0001]
[1750443404944,0.59471003,103310.0,103300.0,0.19371084]
[1750443405190,0.61779585,103310.0,103300.0,0.20458128]
[1750443405397,0.60811625,103310.0,103300.0,0.21426163]
[1750443405616,0.60811625,103310.0,103300.0,0.25564189]
[1750443405831,0.59843693,103310.0,103300.0,0.26532205]
[1750443406043,0.59843693,103310.0,103300.0,0.23628128]
[1750443406044,0.61779585,103310.0,103300.0,0.23628128]
[1750443406257,0.61475576,103310.0,103300.0,0.24596163]
[1750443406469,0.60607625,103310.0,103300.0,0.25564189]
[1750443406895,0.26607625,103310.0,103300.0,0.25564189]
[1750443407316,0.23703876,103310.0,103300.0,0.25564189]
[1750443407526,0.25639674,103310.0,103300.0,0.26532196]
[1750443407732,0.25639674,103310.0,103300.0,0.29722205]
[1750443407939,0.25639674,103310.0,103300.0,0.27786163]
[1750443408148,0.27575548,103310.0,103300.0,0.24596163]
[1750443408332,0.27475548,103310.0,103300.0,0.24596163]
[1750443408583,0.27475538,103310.0,103300.0,0.25764189]
[1750443409001,0.27475529,103310.0,103300.0,0.26732205]
[1750443409209,0.09771529,103310.0,103300.0,0.25764189]
[1750443409838,0.09771529,103310.0,103300.0,0.26732205]
[1750443410043,0.04932,103310.0,103300.0,0.26732205]
[1750443410249,0.05899885,103310.0,103300.0,0.30032093]
[1750443410456,0.06867779,103310.0,103300.0,0.29064114]
[1750443410674,2.07770975,103320.0,103310.0,0.28842958]
[1750443410908,2.04863075,103320.0,103310.0,0.28961958]
[1750443412182,2.04963075,103320.0,103310.0,0.28961958]
[1750443412831,2.04863075,103320.0,103310.0,0.28961958]
[1750443413248,2.04863075,103320.0,103310.0,0.29061958]
[1750443413472,2.04863075,103320.0,103310.0,0.29161958]
[1750443414510,2.38863075,103320.0,103310.0,0.29161958]
[1750443417913,2.38863075,103320.0,103310.0,0.32022577]
[1750443418120,2.38863075,103320.0,103310.0,0.4155047]
[1750443421228,2.04863075,103320.0,103310.0,0.94068944]
[1750443422405,2.04863075,103320.0,103310.0,1.31600839]
[1750443422634,2.01743075,103320.0,103310.0,2.14277258]
[1750443422892,2.01743075,103320.0,103310.0,2.34277258]
[1750443422893,1.94324523,103320.0,103310.0,2.34277258]
[1750443423110,1.96935,103330.0,103320.0,0.33714908]
[1750443423324,3.68831228,103330.0,103320.0,1.97133579]
[1750443423778,3.67862755,103330.0,103320.0,1.97133579]
[1750443424228,3.66894282,103330.0,103320.0,1.97133579]
[1750443424452,3.65925809,103330.0,103320.0,1.97133579]
[1750443424921,3.64957336,103330.0,103320.0,2.22472365]
[1750443425161,3.64957336,103330.0,103320.0,2.23472365]
[1750443425393,3.63988863,103330.0,103320.0,2.23472365]
[1750443425613,3.6302039,103330.0,103320.0,2.23472365]
[1750443425824,3.6302039,103330.0,103320.0,1.64658583]
[1750443428322,3.6302039,103330.0,103320.0,2.28392365]
[1750443428539,3.6302039,103330.0,103320.0,2.31298065]
[1750443429006,3.6302039,103330.0,103320.0,1.67564283]
[1750443429453,3.6302039,103330.0,103320.0,1.40000283]
[1750443429735,3.6302039,103330.0,103320.0,0.53432416]
[1750443429968,3.6302039,103330.0,103320.0,0.32906716]
[1750443430189,3.6940339,103330.0,103320.0,0.32788716]
[1750443430405,3.6940339,103330.0,103320.0,0.23260823]
[1750443430615,3.6940339,103330.0,103320.0,0.22760823]
[1750443430837,3.6940339,103330.0,103320.0,0.22560823]
[1750443431277,3.6940339,103330.0,103320.0,0.39876823]
[1750443431697,3.6940339,103330.0,103320.0,0.40276823]
[1750443431909,3.6940339,103330.0,103320.0,0.39976823]
[1750443435198,3.6940339,103330.0,103320.0,0.22360823]
[1750443435412,3.6940339,103330.0,103320.0,0.39964823]
[1750443438673,3.6929039,103330.0,103320.0,0.39964823]
[1750443438912,3.6940339,103330.0,103320.0,0.39964823]
[1750443439647,3.6929039,103330.0,103320.0,0.39964823]
[1750443439867,3.6302039,103330.0,103320.0,0.33460801]
[1750443440077,3.6302039,103330.0,103320.0,1.14786583]
[1750443440520,3.33425403,103330.0,103320.0,1.14686583]
[1750443440961,3.33425403,103330.0,103320.0,1.46324038]
[1750443441172,3.11410293,103330.0,103320.0,1.2254356]
[1750443441438,3.11410293,103330.0,103320.0,1.2264356]
[1750443441652,3.11410293,103330.0,103320.0,1.2284356]
[1750443442077,3.11410293,103330.0,103320.0,1.5684356]
[1750443443466,3.11410293,103330.0,103320.0,1.80225499]
[1750443443978,3.11410293,103330.0,103320.0,1.85225499]
[1750443444967,3.11410293,103330.0,103320.0,1.90109499]
[1750443445170,4.11410293,103330.0,103320.0,1.90009499]
[1750443445374,4.11410293,103330.0,103320.0,1.90309499]
[1750443445585,4.11410293,103330.0,103320.0,1.26575717]
[1750443445787,4.11410293,103330.0,103320.0,1.90309499]
[1750443445994,4.11410293,103330.0,103320.0,1.90109499]
[1750443446323,4.11410293,103330.0,103320.0,1.90409499]
[1750443446941,4.11410293,103330.0,103320.0,1.90393499]
[1750443447273,4.11410293,103330.0,103320.0,1.26659717]